Cogmind - Beta 15 @@@ ROGUE MODE // 2025.08.25 @ 02:04:20 Player: Elattomatos Result: Destroyed by H-77 Assassin with High-powered Shotgun Performance ------------- Evolutions (7) 3500 Regions Visited (16) 3200 Robots Destroyed (143) 715 Value Destroyed (6409) 6409 Prototype IDs (3) 60 Alien Tech Used (0) 0 Bonus (1020) 1020 TOTAL SCORE: 14904 Bonus ------- High Alert Combat Kills 95 Follower Combat Kills 125 Entered DSFs 500 Aligned with FarCom 300 Cogmind --------- Core Integrity 0/1300 Matter 64/300 Energy 150/150 System Corruption 70% Temperature Cool (0) Movement Core (1600) Ox31 Location -3/Research Parts ------- > --- POWER (3) -------- Micro Antimatter Reactor > --- PROPULSION (4) --- (None) > --- UTILITY (10) ----- Advanced Heat Sink Huge Storage Unit Advanced Visual Processing Unit Advanced Terrain Scan Processor Advanced Hacking Suite Advanced Hacking Suite > --- WEAPON (4) ------- Coil Gun > --- INVENTORY (25) --- Light Ion Engine Advanced Heat Sink Advanced Heat Sink Structural Scanner Advanced Signal Interpreter Improved Terrain Scanner Terrain Scan Processor Seismic Detector Improved Transmission Jammer Improved Transmission Jammer Advanced Component Analysis Suite Recalibrator Drone Bay (0/2) Advanced Datajack Advanced Remote Datajack Advanced Remote Datajack Welding Torch Peak State ------------ > --- POWER ------------ Improved Fusion Compressor Micro Antimatter Reactor Micro Antimatter Reactor > --- PROPULSION ------- Flexi-carbon Leg Myomer Leg Biometal Leg Q-thruster > --- UTILITY ---------- Advanced Heat Sink Advanced Heat Sink Advanced Heat Sink Huge Storage Unit Advanced Visual Processing Unit Advanced Terrain Scan Processor Improved Transmission Jammer Advanced Force Field Advanced Hacking Suite Advanced Hacking Suite > --- WEAPON ----------- Improved Arc Projector Wave Gun Coil Gun Coil Gun > --- INVENTORY -------- Micro Antimatter Reactor Micro Antimatter Reactor Armored Medium Treads Flexi-carbon Leg Wheel Compact Wheel Advanced Heat Sink Advanced Heat Sink Advanced Heat Sink Structural Scanner Advanced Signal Interpreter Terrain Scan Processor Seismic Detector Improved Transmission Jammer Improved Transmission Jammer Advanced Component Analysis Suite Recalibrator Drone Bay Gamma Rifle High-powered Shotgun Advanced Datajack Advanced Remote Datajack Advanced Remote Datajack Welding Torch [Rating: 133] Favorites ----------- Power Fission Core Engine Light Deuterium Engine Power Core Fission Core Reactor Micro Antimatter Reactor Propulsion Light Treads Treads Light Treads Leg Flexi-carbon Leg Wheel Compact Wheel Hover Unit Improved Antigrav System Flight Unit Xenon Bombardment Thruster Utility Huge Storage Unit Device Seismic Detector Storage Huge Storage Unit Processor Modified TNC Hackware Hacking Suite Protection Medium Reactive Plating Weapon Gatling Laser Energy Gun Gatling Laser Energy Cannon EM Pulse Cannon Ballistic Gun Minigun Ballistic Cannon Gauss Cannon Launcher Improved Proton Missile Launcher Special Weapon Advanced Remote Datajack Impact Weapon Flail Slashing Weapon Greatsword Piercing Weapon Spear Special Melee Weapon Improved Datajack Build | -11 -10 -9 -9 -9 -8 -8 -7 -7 -7 -6 -5 -5 -5 -4 -4 -3 ------- Run | Yrd Mat Mat Min Exi Min Mat Fac Low Low Fac Fac Ext Cet Fac DSF Res Slots Evolved 14 | . . 2 . . . 2 2 . . 2 2 . . 2 . 2 Power 2 | . . . . . . . . . . 1 1 . . . . . Propulsion 2 | . . . . . . . . . . . . . . 1 . 1 Utility 8 | . . 2 . . . 2 1 . . 1 1 . . . . 1 Weapon 2 | . . . . . . . 1 . . . . . . 1 . . Parts Attached 204 | 8 4 10 11 2 4 11 19 . 3 2 11 37 7 2 8 65 Power 28 | 1 . 1 1 . . 1 2 . . 2 1 7 1 . . 11 Engine 8 | 1 . 1 . . . 1 2 . . 1 . 1 . . . 1 Core 13 | . . . 1 . . . . . . 1 1 6 1 . . 3 Reactor 7 | . . . . . . . . . . . . . . . . 7 Propulsion 44 | 3 . 2 2 . 1 2 3 . . . 3 8 1 2 2 15 Treads 14 | . . 2 2 . . . 2 . . . 2 4 1 . . 1 Leg 9 | . . . . . . . . . . . . 1 . . . 8 Wheel 16 | 3 . . . . 1 2 1 . . . . 3 . 2 2 2 Hover 1 | . . . . . . . . . . . . . . . . 1 Flight 4 | . . . . . . . . . . . 1 . . . . 3 Utility 71 | 2 2 5 4 2 3 6 5 . 2 . 6 7 4 . 4 19 Device 35 | 1 . 1 3 . 1 3 3 . . . 3 5 1 . 1 13 Storage 6 | 1 2 . . 1 . . . . . . . . . . 1 1 Processor 6 | . . 1 . 1 1 . 1 . 1 . . . . . . 1 Hackware 4 | . . . . . . . . . . . . . 1 . 1 2 Protection 20 | . . 3 1 . 1 3 1 . 1 . 3 2 2 . 1 2 Artifact . | . . . . . . . . . . . . . . . . . Weapon 61 | 2 2 2 4 . . 2 9 . 1 . 1 15 1 . 2 20 Energy Gun 17 | 2 2 1 1 . . . 2 . 1 . . 2 . . . 6 Energy Cannon 10 | . . . . . . . 2 . . . 1 3 . . . 4 Ballistic Gun 16 | . . 1 1 . . 1 1 . . . . 3 . . . 9 Ballistic Cannon 5 | . . . 1 . . . 2 . . . . 1 . . 1 . Launcher 4 | . . . 1 . . . . . . . . 2 1 . . . Special Weapon 1 | . . . . . . . . . . . . . . . . 1 Impact Weapon 3 | . . . . . . . 1 . . . . 2 . . . . Slashing Weapon 2 | . . . . . . 1 . . . . . 1 . . . . Piercing Weapon 1 | . . . . . . . 1 . . . . . . . . . Special Melee Weapon 2 | . . . . . . . . . . . . 1 . . 1 . Unidentified Prototypes 3 | . . . . 2 . . . . . . . . 1 . . . Corrupted Parts 7 | . . . . . . . . . . . . . . . . 7 System Corruption 47 | . . . . . . . . . . . . . . . . 47 Parts Lost 112 | . . 6 3 . . 5 3 . 2 . 6 18 1 . 4 64 Power 20 | . . 1 . . . 1 . . . . 2 5 . . . 11 Propulsion 27 | . . 1 1 . . 2 2 . . . 1 3 . . 1 16 Utility 31 | . . 1 2 . . . . . 1 . 2 7 1 . 1 16 Weapon 34 | . . 3 . . . 2 1 . 1 . 1 3 . . 2 21 Highest Loss Streak 24 | . . 3 3 . . 2 1 . 2 . 2 6 1 . 2 24 To Critical Strikes 3 | . . . . . . . . . . . . . . . . 3 Average Backups 21 | 4 7 11 23 24 23 21 23 23 23 22 21 22 24 23 24 22 Power 1 | . 1 1 2 2 2 2 2 2 2 1 . 1 2 2 2 . Propulsion 3 | 2 2 3 4 4 4 3 2 2 3 4 4 5 4 3 4 3 Utility 8 | . 1 3 7 8 7 6 9 12 11 10 9 6 7 8 8 12 Weapon 7 | 1 2 3 9 10 9 8 7 7 6 6 6 8 10 9 8 4 Tool/Special . | . . . . . . . . . . . . . . . . . Unused Backups 31 | . . . 3 1 2 1 6 1 . . . 3 . . . 14 Power 2 | . . . . . . . 1 . . . . . . . . 1 Propulsion 3 | . . . . . . . . 1 . . . 2 . . . . Utility 13 | . . . . 1 2 . 1 . . . . . . . . 9 Weapon 11 | . . . 3 . . 1 4 . . . . 1 . . . 2 Tool/Special 2 | . . . . . . . . . . . . . . . . 2 Average Slot Usage (%) 93 | . 98 96 99 99 100 95 97 92 89 92 89 90 91 93 90 78 Engine 4 | . 14 11 7 . . . 7 7 7 6 8 . . . . . Core 5 | . . . 3 11 11 8 . . . 5 5 13 15 15 12 4 Treads 8 | . . . 21 22 18 2 9 . . . 2 6 9 11 1 . Wheel 5 | . 28 18 . . 3 13 2 7 7 6 3 2 1 3 11 6 Device 19 | . 12 18 9 16 10 21 27 30 25 25 22 20 7 5 5 15 Storage 7 | . 14 11 11 11 11 9 7 7 7 6 5 5 5 5 5 4 Processor 14 | . . 10 11 16 22 18 15 15 16 20 17 14 11 10 10 7 Protection 4 | . . 3 12 . . 4 2 . 1 . 2 6 16 15 14 5 Energy Gun 6 | . 28 18 10 11 11 7 5 7 7 6 2 . . . . 4 Energy Cannon 1 | . . . . . . . 3 . . . 2 4 . . . 4 Ballistic Gun 2 | . . 2 7 . . 4 1 . . . 2 3 . . . 2 Ballistic Cannon 3 | . . . 3 11 11 3 5 7 7 6 2 . 1 . 3 1 Launcher 1 | . . . . . . . . . . . . 1 15 15 10 . Impact Weapon 2 | . . . . . . . 3 7 7 6 4 4 . 4 4 1 Peak Build Rating 133 | 7 10 15 23 32 31 36 49 49 50 55 66 79 98 102 100 133 Average Rating 48 | 5 8 13 16 25 28 33 41 49 47 54 59 68 91 100 92 93 On Entrance 45 | . 7 10 15 23 28 31 32 49 49 47 55 61 79 97 97 85 Naked Turns . | . . . . . . . . . . . . . . . . . Heaviest Build 174 | 13 90 93 104 99 100 115 127 100 119 108 154 171 174 174 174 166 Greatest Support 93 | 26 20 40 40 40 40 32 40 28 28 28 50 70 53 76 48 93 Greatest Overweight (x) 34 | . 4 9 8 2 9 11 7 3 4 3 5 17 17 4 6 34 Average Overweight (x) 3 | . 1 5 2 2 4 6 3 3 3 3 3 3 6 2 4 1 Largest Inventory Capacity 25 | 8 25 25 25 25 25 25 25 25 25 25 25 25 25 25 25 25 Average Capacity 24 | 7 14 25 25 25 25 25 25 25 25 25 25 25 25 25 25 25 Most Carried 25 | 8 9 25 25 25 25 25 25 25 25 25 24 25 25 25 25 25 Average Carried 22 | 4 7 11 23 25 24 23 24 24 24 23 21 22 24 23 24 22 Final Capacity 25 | 8 25 25 25 25 25 25 25 25 25 25 25 25 25 25 25 25 Final Carried 25 | 7 8 25 25 25 24 22 25 25 24 25 17 24 25 25 25 17 Class Distribution -------------------- 24% | Assassin 20% | Mutant 13% | Infiltrator-Assassin 10% | Scavenger-Mutant 7% | Skirmisher 6% | Scavenger-Tank 6% | Scavenger-Skirmisher 5% | Scavenger-Assassin Dominant Class ---------------- Mutant | -10/Materials Mutant | -9/Materials Scavenger-Mutant | -9/Mines Mutant | -9/Exiles Skirmisher | -8/Mines Skirmisher | -8/Materials Assassin | -7/Factory Assassin | -7/Lower Caves Assassin | -7/Lower Caves Infiltrator-Assassin | -6/Factory Infiltrator-Assassin | -5/Factory Scavenger-Assassin | -5/Extension Scavenger-Tank | -5/Cetus Scavenger-Tank | -4/Factory Scavenger-Tank | -4/DSF Scavenger-Skirmisher | -3/Research Resources | -11 -10 -9 -9 -9 -8 -8 -7 -7 -7 -6 -5 -5 -5 -4 -4 -3 ----------- Run | Yrd Mat Mat Min Exi Min Mat Fac Low Low Fac Fac Ext Cet Fac DSF Res Matter Collected 5620 | 280 50 224 272 20 68 364 493 113 148 86 153 1627 258 . 90 1374 Remotely . | . . . . . . . . . . . . . . . . . Salvage Created 7023 | 116 152 499 91 . 46 509 550 . 278 87 175 2067 485 . 763 1205 Parts 315 | 4 12 35 6 . 7 17 17 . 13 2 2 91 15 . 26 68 Haulers Intercepted 2 | . . 1 . . . . 1 . . . . . . . . . Recyclers Shooed 2 | . . . . . . . 1 . . . . 1 . . . . Parts Field Recycled 1 | . . . . . . . . . . . . 1 . . . . Retrieved Matter 20 | . . . . . . . . . . . . 20 . . . . Parts Self-Destructed 16 | . . . . . . . . 2 14 . . . . . . . Prevented . | . . . . . . . . . . . . . . . . . Kills | -11 -10 -9 -9 -9 -8 -8 -7 -7 -7 -6 -5 -5 -5 -4 -4 -3 ------- Run | Yrd Mat Mat Min Exi Min Mat Fac Low Low Fac Fac Ext Cet Fac DSF Res Combat Hostiles Destroyed 118 | . 4 10 7 . 3 10 8 . 6 4 4 29 6 . 9 18 Melee 1 | . . . . . . . 1 . . . . . . . . . Guns 48 | . 3 10 6 . 3 4 4 . 4 2 2 2 . . . 8 Cannons 36 | . . . 1 . . 5 3 . 2 2 2 12 . . 2 7 AOE 20 | . 1 . . . . 1 . . . . . 11 2 . 5 . Classes Destroyed 15 | 2 1 4 . . . 1 4 . . . . 1 . . 2 . Worker 1 | . . . . . . . 1 . . . . . . . . . Builder 5 | . . . . . . . 2 . . . . 2 . . . 1 Tunneler 1 | 1 . . . . . . . . . . . . . . . . Hauler 2 | . . 1 . . . . 1 . . . . . . . . . Recycler 6 | 1 . . . . . 2 1 . . . . 2 . . . . Mechanic 1 | . . . . . . . 1 . . . . . . . . . Operator 1 | . . . . . . . . . . . . 1 . . . . Watcher 8 | . . 2 . . . 1 1 . . . . 2 1 . . 1 Swarmer 27 | . 4 3 6 . 3 2 . . . 2 . 4 . . . 3 Cutter 4 | . . . . . . . . . . . . . . . 4 . Grunt 38 | . . 2 . . . 3 1 . 6 . . 18 . . 4 4 Sentry 17 | . . 5 . . . 4 1 . . . 1 5 . . . 1 Specialist 1 | . . . . . . . . . . . . . . . 1 . Hunter 7 | . . . . . . 1 . . . . . 1 2 . . 3 Programmer 19 | . . . . . . . 6 . . 2 3 1 . . . 7 Cetus Guard 4 | . . . . . . . . . . . . . 4 . . . Best Kill Streak 7 | 2 3 4 4 . 3 5 2 . 6 3 1 4 5 . 7 3 Combat Bots Only 7 | . 3 4 4 . 3 3 1 . 6 3 1 3 4 . 7 3 Max Kills in Single Turn 2 | 1 1 1 1 . 1 1 1 . 2 1 1 2 1 . 2 1 Gunslinging . | . . . . . . . . . . . . . . . . . Exploded 2 | . 1 . . . . 1 . . . . . 2 1 . 2 . Melee 1 | . . . . . . . 1 . . . . . . . . . Uniques/NPCs Destroyed 1 | . . . 1 . . . . . . . . . . . . . YI-UF0 (-9/Mines) Combat | -11 -10 -9 -9 -9 -8 -8 -7 -7 -7 -6 -5 -5 -5 -4 -4 -3 -------- Run | Yrd Mat Mat Min Exi Min Mat Fac Low Low Fac Fac Ext Cet Fac DSF Res Hostile Shots Fired 1458 | . 9 64 71 . 15 54 123 . 31 28 83 149 29 . 95 707 Missed 438 | . 1 13 19 . 2 14 44 . 12 8 21 51 7 . 47 199 Hits 1020 | . 8 51 52 . 13 40 79 . 19 20 62 98 22 . 48 508 Melee 7 | . . . . . . . . . . . . . . . 7 . Projectile 1013 | . 8 51 52 . 13 40 79 . 19 20 62 98 22 . 41 508 AOE 17 | . . . 13 . . . . . . . 3 . . . 1 . Critical Strikes 53 | . . 3 . . . . 4 . 3 2 4 4 1 . 7 25 Part Disruptions 1 | . . . . . . . . . . . 1 . . . . . Damage Taken 18890 | . 60 581 750 . 99 776 1032 . 289 306 1976 2553 473 . 1300 8695 Core 2840 | . 22 60 82 . 28 111 172 . . 58 696 195 56 . 43 1317 Absorbed by Shields 440 | . . . . . . . . . . . . . . . . 440 Reduced by Siege Mode 24 | . . . . . . . . . . . . 24 . . . . Ignored by Resistances 204 | . . . . . . . 28 . . . 64 87 25 . . . Core Remaining (%) 74 | 100 91 . . . 57 79 . . 75 93 . . 5 . 96 . Volleys Fired 393 | 5 5 43 19 . 3 29 43 . 16 11 34 69 5 . 11 100 Largest 4 | 2 2 2 2 . 2 2 2 . 2 2 3 3 3 . 3 4 Hottest 283 | 80 90 90 79 . 120 120 128 . 117 117 202 149 132 . 138 283 Shots Fired 771 | 10 10 64 37 . 6 58 84 1 28 22 60 135 15 . 21 220 Gun 420 | 10 10 64 26 . 3 35 35 . 12 11 38 38 . . . 138 Cannon 270 | . . . 6 . 3 20 49 1 16 11 22 55 . . 5 82 Launcher 81 | . . . 5 . . 3 . . . . . 42 15 . 16 . Special . | . . . . . . . . . . . . . . . . . Kinetic 311 | . . 34 19 . 3 26 31 1 16 11 34 43 . . 5 88 Thermal 248 | . . 11 13 . 3 29 44 . 12 11 26 32 . . . 67 Explosive 8 | . . . 5 . . 3 . . . . . . . . . . Electromagnetic 204 | 10 10 19 . . . . 9 . . . . 60 15 . 16 65 Robot Hit Streak 13 | 6 2 13 5 . 6 6 8 . 4 5 10 13 5 . 3 10 Robot Miss Streak 8 | 1 2 3 5 . 1 8 7 . 3 3 5 4 1 . 2 8 Penetration Max . | . . . . . . . . . . . . . . . . . Secondary Targets 3 | . . . 2 . . . . . . . . . . . . 1 Max Gunslinging Chain 1 | . . . 1 . . . . . . . . . . . . 1 Shots Hit Robots 513 | 8 4 43 19 . 3 40 62 . 17 16 37 115 4 . 14 131 Core Hits 261 | 3 4 23 12 . 3 22 27 . 13 8 8 64 11 . 19 44 Critical Kills 4 | . . . . . . . . . . . . 1 . . . 3 Critical Parts Destroyed 4 | . . . . . . . . . . . 2 . . . . 2 Critical Strikes 23 | . . 3 1 . . 3 . . . 1 2 2 . . 2 9 Burn 3 | . . 2 . . . . . . . . . . . . . 1 Meltdown 2 | . . . . . . . . . . . . 1 . . . 1 Destroy 4 | . . . . . . . . . . . 1 . . . . 3 Blast 11 | . . . 1 . . 3 . . . 1 . 1 . . 2 3 Corrupt 1 | . . 1 . . . . . . . . . . . . . . Smash 2 | . . . . . . . . . . . 1 . . . . 1 Melee Attacks 158 | . . . . . . 20 35 . . 5 8 68 2 . 13 7 Impact 81 | . . . . . . . 19 . . 5 8 31 2 . 9 7 Slashing 20 | . . . . . . 20 . . . . . . . . . . Piercing 16 | . . . . . . . 16 . . . . . . . . . Sneak Attacks 45 | . . . . . . . 5 . . 1 . 37 . . 2 . Combat Hostiles 3 | . . . . . . . . . . 1 . . . . 2 . Follow-up Attacks . | . . . . . . . . . . . . . . . . . Damage Inflicted 14803 | 104 120 509 389 . 53 995 1814 . 341 484 936 3104 1003 . 1346 3605 Guns 5311 | 104 49 509 195 . 53 427 706 . 197 277 526 421 . . . 1847 Cannons 4626 | . . . 138 . . 333 648 . 144 169 344 1096 . . 106 1648 Explosions 3909 | . 71 . 56 . . 235 . . . . . 1540 1003 . 1004 . Melee 945 | . . . . . . . 460 . . 38 66 47 . . 236 98 Ramming 12 | . . . . . . . . . . . . . . . . 12 Kinetic 3899 | . . 184 233 . . 374 427 . 144 169 406 569 . . 106 1287 Thermal 5098 | . 71 115 100 . 53 514 825 . 197 277 464 960 . . 44 1478 Explosive 163 | . . . 56 . . 107 . . . . . . . . . . Electromagnetic 4686 | 104 49 210 . . . . 102 . . . . 1528 1003 . 960 730 Impact 919 | . . . . . . . 434 . . 38 66 47 . . 236 98 Slashing . | . . . . . . . . . . . . . . . . . Piercing 26 | . . . . . . . 26 . . . . . . . . . Highest Corruption 70 | . . . . . . 7 6 6 6 1 13 20 20 . 1 70 Average Corruption 11 | . . . . . . 1 4 6 6 1 8 15 20 . 1 27 Corruption Purged 7 | . . . . . . . . . . . . . . . . 7 Corruption Blocked . | . . . . . . . . . . . . . . . . . Effects 452 | . . . . . . 12 79 28 11 6 39 145 37 . 3 92 Message Errors 104 | . . . . . . 2 18 8 3 3 12 29 10 . 1 18 Matter Fused 102 | . . . . . . 4 20 6 1 2 9 39 10 . 1 10 Heat Flow Errors 54 | . . . . . . 3 8 1 . . 3 26 6 . 1 6 Energy Discharges 46 | . . . . . . 2 10 5 3 1 5 10 4 . . 6 Parts Rejected 6 | . . . . . . . . . . . . 2 . . . 4 Parts Fused 8 | . . . . . . . 1 1 . . 2 1 1 . . 2 Data Loss (minor) 54 | . . . . . . 1 12 4 1 . 3 17 3 . . 13 Data Loss (major) 22 | . . . . . . . 4 2 1 . 1 6 2 . . 6 Misfires 15 | . . . . . . . 3 1 1 . 1 6 . . . 3 Alerts 13 | . . . . . . . 2 . 1 . 1 5 1 . . 3 Misdirections 9 | . . . . . . . . . . . . 2 . . . 7 Weapon Failures 19 | . . . . . . . 1 . . . 2 2 . . . 14 Overload Shots . | . . . . . . . . . . . . . . . . . Overflow Damage 608 | . 9 . 21 . . . 227 . . 17 42 61 . . 38 193 Projectiles 213 | . . . 21 . . . 8 . . 17 12 14 . . . 141 Explosions 65 | . 9 . . . . . 3 . . . . 47 . . 6 . Melee 330 | . . . . . . . 216 . . . 30 . . . 32 52 Knockbacks 19 | . . . . . . 2 5 . . 2 . 3 . . 3 4 Impact 6 | . . . . . . . 1 . . . . 1 . . 3 1 Kinetic 13 | . . . . . . 2 4 . . 2 . 2 . . . 3 Secondary . | . . . . . . . . . . . . . . . . . Self-Inflicted Damage 598 | . . . 39 . . 73 174 . . . . 95 . . 217 . Shots 19 | . . . 1 . . 1 2 . . . . 7 . . 8 . Rammed 5 | . . . . . . . . . . . . . . . . 5 Targets Rammed 5 | . . . . . . . . . . . . . . . . 5 Kicked . | . . . . . . . . . . . . . . . . . Crushed . | . . . . . . . . . . . . . . . . . Highest Temperature 634 | 18 70 98 206 . 198 425 269 249 433 312 634 299 252 . 84 380 Average Temperature 106 | 7 33 34 75 . 103 146 84 137 212 132 227 77 103 . 22 93 Received Heat Transfer 2709 | . . 177 . . . 180 117 . 198 . 27 742 9 . 30 1229 Effects 18 | . . . . . . . . . 3 . 10 . 5 . . . Shutdowns 4 | . . . . . . . . . 1 . 3 . . . . . Energy Bleed 1 | . . . . . . . . . . . 1 . . . . . Interference 5 | . . . . . . . . . . . . . 5 . . . Short Circuit 2 | . . . . . . . . . . . 2 . . . . . Damage (minor) 1 | . . . . . . . . . . . 1 . . . . . Damage (major) 2 | . . . . . . . . . 2 . . . . . . . Damage (core) 3 | . . . . . . . . . . . 3 . . . . . Siege Activations 1 | . . . . . . . . . . . . 1 . . . . Total Turns 52 | . . . . . . . . . . . . 52 . . . . Longest Duration 52 | . . . . . . . . . . . . 52 . . . . Martial Activations . | . . . . . . . . . . . . . . . . . Shielding Activations . | . . . . . . . . . . . . . . . . . Robots Disrupted 1 | . . . . . . . . . . . . 1 . . . . Combat Hostiles 1 | . . . . . . . . . . . . 1 . . . . Robots Corrupted 13 | . . . . . . . 1 . . . . 3 4 . 3 2 Combat Hostiles 11 | . . . . . . . . . . . . 3 4 . 2 2 Parts Fried 44 | 3 . . . . . . 8 . . . . 4 13 . 11 5 Impact Corruptions 12 | . . . . . . . 7 . . . 1 . . . 2 2 Robots Melted 3 | . . . . . . . . . . . . 2 . . . 1 Combat Hostiles 2 | . . . . . . . . . . . . 1 . . . 1 Parts Melted 21 | . . . . . . 1 4 . . 2 2 8 . . . 4 Heat Transferred 8048 | . 150 444 259 . 125 1025 1548 . 450 575 608 1125 . . . 1739 Parts Sabotaged . | . . . . . . . . . . . . . . . . . Parts Stolen . | . . . . . . . . . . . . . . . . . Parts Stripped . | . . . . . . . . . . . . . . . . . Power Chain Reactions 9 | . 1 . . . . . . . . . . 7 . . 1 . Alert | -11 -10 -9 -9 -9 -8 -8 -7 -7 -7 -6 -5 -5 -5 -4 -4 -3 ------- Run | Yrd Mat Mat Min Exi Min Mat Fac Low Low Fac Fac Ext Cet Fac DSF Res Maximum Alert Level 2 | . . . . . . . . . . . . 2 1 . 1 . Low Security (%) 95 | 100 100 100 100 . 100 100 100 . . 100 100 87 33 100 67 100 Level 1 3 | . . . . . . . . . . . . 4 66 . 32 . Level 2 1 | . . . . . . . . . . . . 8 . . . . Level 3 . | . . . . . . . . . . . . . . . . . Level 4 . | . . . . . . . . . . . . . . . . . Level 5 . | . . . . . . . . . . . . . . . . . High Security . | . . . . . . . . . . . . . . . . . Max Security . | . . . . . . . . . . . . . . . . . Sterilizations 1 | . . . . . . . . . . . . . . . 1 . Peak Influence 681 | 10 113 154 94 . 68 149 157 . . 63 40 681 378 81 276 155 Initial 378 | . . 30 44 . . . 18 . . 6 18 . 378 81 2 155 Average 40 | 1 51 35 4 . 6 45 36 . . 6 5 76 253 25 106 24 Influence Increases 4157 | 10 135 306 137 . 74 445 455 . 140 120 132 1229 139 4 314 517 Destroy 0b10 Robot/C 2420 | . 80 200 120 . 60 200 160 . 120 80 80 660 120 . 180 360 Destroy 0b10 Robot/NC 145 | 10 5 15 . . . 15 35 . . . . 40 5 . 10 10 Destroy Leader 540 | . 10 76 10 . 10 62 74 . 20 20 20 106 10 . 20 102 Allied During Kill 60 | . . . . . . . . . . . . 60 . . . . Successful Hack 31 | . 2 . . . . 7 . . . . 4 14 . 4 . . Disable Machine 300 | . . . . . . 60 105 . . 15 . 105 . . . 15 Destroy Structure 316 | . 8 . 7 . 4 41 81 . . 5 28 94 4 . 14 30 Lose Combat Pursuer 345 | . 30 15 . . . 60 . . . . . 150 . . 90 . Influence Decreases 4146 | 10 62 264 252 . 74 403 349 148 130 91 169 555 670 145 42 782 Entered New Map 706 | . . 43 71 . . . 24 56 . 4 21 2 298 64 2 121 Time Decay 2696 | 10 62 166 151 . 74 372 305 92 110 87 128 283 362 81 . 413 Lost Part 550 | . . 55 30 . . 31 20 . 20 . 20 86 10 . 40 238 Lost Ally 194 | . . . . . . . . . . . . 184 . . . 10 Squads Dispatched 28 | . . 1 2 . . 4 6 . . 1 2 5 . . 2 5 Investigation 5 | . . . 1 . . . . . . . . 2 . . . 2 Extermination 12 | . . . . . . . 6 . . 1 2 . . . . 3 Reinforcement 8 | . . 1 1 . . 1 . . . . . 3 . . 2 . Assault . | . . . . . . . . . . . . . . . . . Garrison 3 | . . . . . . 3 . . . . . . . . . . Intercept . | . . . . . . . . . . . . . . . . . Searches Triggered . | . . . . . . . . . . . . . . . . . Construction Impeded 2 | . . . 1 . . . . . . . . 1 . . . . Haulers Reinforced . | . . . . . . . . . . . . . . . . . Active Scanning Responses . | . . . . . . . . . . . . . . . . . Cargo Convoy Interrupts . | . . . . . . . . . . . . . . . . . Stealth | -11 -10 -9 -9 -9 -8 -8 -7 -7 -7 -6 -5 -5 -5 -4 -4 -3 --------- Run | Yrd Mat Mat Min Exi Min Mat Fac Low Low Fac Fac Ext Cet Fac DSF Res Distress Signals 11 | . . 2 . . . 4 . . . . . 1 2 . . 2 Communications Jammed 41 | . . . . . . . 3 . . . 1 1 . . . 36 Distress Signals 40 | . . . . . . . 3 . . . . 1 . . . 36 Times Spotted 188 | . 5 16 8 . 3 18 14 . 7 5 7 54 6 . 19 26 Peak Tracking Total 9 | . 3 4 4 . 3 6 4 . 4 3 3 7 5 . 9 7 Tactical Retreats 16 | . 1 1 . . . 2 1 . . . 1 7 . . 3 . Traps | -11 -10 -9 -9 -9 -8 -8 -7 -7 -7 -6 -5 -5 -5 -4 -4 -3 ------- Run | Yrd Mat Mat Min Exi Min Mat Fac Low Low Fac Fac Ext Cet Fac DSF Res Traps Triggered 4 | . . . . . . 1 . . . . . 2 . . . 1 Indirectly . | . . . . . . . . . . . . . . . . . Trap Hack Attempts . | . . . . . . . . . . . . . . . . . Triggered . | . . . . . . . . . . . . . . . . . Disarmed . | . . . . . . . . . . . . . . . . . Reprogrammed . | . . . . . . . . . . . . . . . . . Reused . | . . . . . . . . . . . . . . . . . Traps Extracted . | . . . . . . . . . . . . . . . . . Installed . | . . . . . . . . . . . . . . . . . Triggered . | . . . . . . . . . . . . . . . . . Machines | -11 -10 -9 -9 -9 -8 -8 -7 -7 -7 -6 -5 -5 -5 -4 -4 -3 ---------- Run | Yrd Mat Mat Min Exi Min Mat Fac Low Low Fac Fac Ext Cet Fac DSF Res Machines Disabled 22 | . . . . . . 4 7 . . 1 . 8 . . 1 1 Max in Single Turn 4 | . . . . . . 1 4 . . 1 . 2 . . 1 1 Machines Repaired . | . . . . . . . . . . . . . . . . . Machines Dismantled . | . . . . . . . . . . . . . . . . . Machines Sabotaged . | . . . . . . . . . . . . . . . . . Overloaded Fab Kills . | . . . . . . . . . . . . . . . . . Hacking | -11 -10 -9 -9 -9 -8 -8 -7 -7 -7 -6 -5 -5 -5 -4 -4 -3 --------- Run | Yrd Mat Mat Min Exi Min Mat Fac Low Low Fac Fac Ext Cet Fac DSF Res Machines Accessed 24 | . 2 1 1 3 . 2 2 . . . 1 5 2 1 . 4 Terminals 20 | . 2 1 . . . 2 2 . . . 1 5 2 1 . 4 Fabricators . | . . . . . . . . . . . . . . . . . Repair Stations . | . . . . . . . . . . . . . . . . . Recycling Units . | . . . . . . . . . . . . . . . . . Scanalyzers . | . . . . . . . . . . . . . . . . . Garrison Access . | . . . . . . . . . . . . . . . . . Total Hacks 62 | . 3 1 1 26 . 3 4 . . . 1 11 3 1 . 8 Successful 46 | . 2 . 1 26 . 2 . . . . 1 7 1 1 . 5 Failed 15 | . 1 1 . . . 1 4 . . . . 3 2 . . 3 Catastrophic 4 | . 1 1 . . . . . . . . . 1 1 . . . Database Lockouts 1 | . . . . . . . . . . . . 1 . . . . Manual 1 | . . . . 1 . . . . . . . . . . . . Terminals 35 | . 3 1 . . . 3 4 . . . 1 11 3 1 . 8 Fabricators . | . . . . . . . . . . . . . . . . . Repair Stations . | . . . . . . . . . . . . . . . . . Recycling Units . | . . . . . . . . . . . . . . . . . Scanalyzers . | . . . . . . . . . . . . . . . . . Garrison Access . | . . . . . . . . . . . . . . . . . Terminal Hacks 46 | . 2 . 1 26 . 2 . . . . 1 7 1 1 . 5 Record 38 | . 2 . . 26 . . . . . . . 4 1 . . 5 Robot Analysis 1 | . . . . . . 1 . . . . . . . . . . Open Door 4 | . . . 1 . . . . . . . 1 2 . . . . Open DSF 1 | . . . . . . . . . . . . . . 1 . . Locate Traps 1 | . . . . . . . . . . . . 1 . . . . Recall Investigation 1 | . . . . . . 1 . . . . . . . . . . Fabricator Hacks . | . . . . . . . . . . . . . . . . . Repair Station Hacks . | . . . . . . . . . . . . . . . . . Recycling Unit Hacks . | . . . . . . . . . . . . . . . . . Scanalyzer . | . . . . . . . . . . . . . . . . . Garrison Access Hacks . | . . . . . . . . . . . . . . . . . Unauthorized Hacks . | . . . . . . . . . . . . . . . . . Terminals . | . . . . . . . . . . . . . . . . . Fabricators . | . . . . . . . . . . . . . . . . . Repair Stations . | . . . . . . . . . . . . . . . . . Recycling Units . | . . . . . . . . . . . . . . . . . Scanalyzers . | . . . . . . . . . . . . . . . . . Garrison Access . | . . . . . . . . . . . . . . . . . Data Cores Recovered . | . . . . . . . . . . . . . . . . . Used . | . . . . . . . . . . . . . . . . . Hacking Detections 10 | . . . . . . . 2 . . . . 4 1 . . 3 Full Trace Events 4 | . . . . . . . . . . . . 2 . . . 2 Feedback Events . | . . . . . . . . . . . . . . . . . Feedback Blocked . | . . . . . . . . . . . . . . . . . Robot Schematics Acquired . | . . . . . . . . . . . . . . . . . Robots Built . | . . . . . . . . . . . . . . . . . Authchips . | . . . . . . . . . . . . . . . . . Time . | . . . . . . . . . . . . . . . . . Total Robot Build Rating . | . . . . . . . . . . . . . . . . . Part Schematics Acquired . | . . . . . . . . . . . . . . . . . Parts Built . | . . . . . . . . . . . . . . . . . Authchips . | . . . . . . . . . . . . . . . . . Time . | . . . . . . . . . . . . . . . . . Total Part Build Rating . | . . . . . . . . . . . . . . . . . Parts Repaired . | . . . . . . . . . . . . . . . . . Time . | . . . . . . . . . . . . . . . . . Parts Recycled . | . . . . . . . . . . . . . . . . . Recycled Matter . | . . . . . . . . . . . . . . . . . Retrieved Matter . | . . . . . . . . . . . . . . . . . Retrieved Components . | . . . . . . . . . . . . . . . . . Parts Scanalyzed . | . . . . . . . . . . . . . . . . . Part Schematics Acquired . | . . . . . . . . . . . . . . . . . Parts Damaged . | . . . . . . . . . . . . . . . . . Bothacking | -11 -10 -9 -9 -9 -8 -8 -7 -7 -7 -6 -5 -5 -5 -4 -4 -3 ------------ Run | Yrd Mat Mat Min Exi Min Mat Fac Low Low Fac Fac Ext Cet Fac DSF Res Used RIF Installer . | . . . . . . . . . . . . . . . . . Robots Hacked 3 | . . . . . . . . . . . . 2 . . 1 . Non-combat 2 | . . . . . . . . . . . . 2 . . . . Combat 1 | . . . . . . . . . . . . . . . 1 . Robot Hacks Applied 3 | . . . . . . . . . . . . 2 . . 1 . parse_system 2 | . . . . . . . . . . . . 1 . . 1 . no_distress 1 | . . . . . . . . . . . . 1 . . . . Relay Couplers Released . | . . . . . . . . . . . . . . . . . Fabnet Peak Effective % . | . . . . . . . . . . . . . . . . . Robots Rewired 13 | . . . . . . . . . . . . 13 . . . . Allies Hacked . | . . . . . . . . . . . . . . . . . Hacks Repelled . | . . . . . . . . . . . . . . . . . Allies | -11 -10 -9 -9 -9 -8 -8 -7 -7 -7 -6 -5 -5 -5 -4 -4 -3 -------- Run | Yrd Mat Mat Min Exi Min Mat Fac Low Low Fac Fac Ext Cet Fac DSF Res Total Allies 16 | . . . . . . . . . . . . 16 . . . . Largest Group 4 | . . . . . . . . . . . . 4 . . . . Highest-Rated Group 124 | . . . . . . . . . . . . 124 . . . . Highest-Rated Ally 39 | . . . . . . . . . . . . 39 . . . . Initial Warlord ECA Mod 9 | . . . . . . . . . . . . . . . . 9 Total Orders 5 | . . . . . . . . . . . . . 2 . . 3 EXPLORE 5 | . . . . . . . . . . . . . 2 . . 3 Ally Attacks 109 | . . . . . . . . . . . . 109 . . . . Total Damage 1563 | . . . . . . . . . . . . 1563 . . . . Kills 5 | . . . . . . . . . . . . 5 . . . . Allies Corrupted 2 | . . . . . . . . . . . . 1 . . . 1 Allies Melted . | . . . . . . . . . . . . . . . . . Intel | -11 -10 -9 -9 -9 -8 -8 -7 -7 -7 -6 -5 -5 -5 -4 -4 -3 ------- Run | Yrd Mat Mat Min Exi Min Mat Fac Low Low Fac Fac Ext Cet Fac DSF Res Active Infowar (turns) 23391 | 14 170 1640 1971 1260 1339 1459 4159 1094 336 981 2013 3501 719 283 260 2192 Optics 321 | . . . . . . . . . . . . . . . . 321 Sensors 6497 | . . . . . . 1128 4159 1094 116 . . . . . . . Terrain 15556 | . . 1640 383 616 819 1133 4159 1094 336 981 1733 2662 . . . . Structural 586 | . . . . . . . . . . . . 585 . . . 1 Seismic 18416 | 14 170 1303 1957 1260 505 1125 4159 1094 336 981 1851 3501 160 . . . T.N.C. 16922 | . . . . 632 1339 1459 4159 1094 336 981 1568 2829 719 283 260 1263 Jamming 8056 | . . . . . . . 851 1094 336 981 2013 663 . . 38 2080 ECM 3421 | . . . . . . . 767 . 1 5 1404 924 . . . 320 Robot Analysis Total 1 | . . . . . . 1 . . . . . . . . . . Derelict Logs Recovered 4 | . . . 3 . . . . 1 . . . . . . . . Drone Launches 5 | . . . . . . . . . . . . . 2 . . 3 Drone Recoveries 3 | . . . . . . . . . . . . . 2 . . 1 Exploration | -11 -10 -9 -9 -9 -8 -8 -7 -7 -7 -6 -5 -5 -5 -4 -4 -3 ------------- Run | Yrd Mat Mat Min Exi Min Mat Fac Low Low Fac Fac Ext Cet Fac DSF Res Turns Passed 24734 | 92 192 1796 2740 1260 1339 1459 4159 1094 336 981 2013 3501 837 283 260 2392 Spaces Moved 6806 | 62 161 293 797 393 395 353 844 450 149 235 429 1019 189 108 108 821 Core 13 | 6 . . . . . . . . . . . . . . . 7 Treads 3025 | . . 3 795 393 231 . 506 . . . 121 765 146 63 . 2 Legs 364 | . . . . . . . . . . . . . . . . 364 Wheels 3404 | 56 161 290 2 . 164 353 338 450 149 235 308 254 43 45 108 448 Hover . | . . . . . . . . . . . . . . . . . Flight . | . . . . . . . . . . . . . . . . . Fastest Speed 50 | 50 80 140 200 320 215 130 145 145 145 145 145 165 320 153 130 130 Average Speed 234 | 85 97 161 319 320 276 189 279 145 146 145 206 260 383 250 160 170 Slowest Speed 1750 | 90 140 320 320 320 480 245 400 145 160 145 325 400 400 320 180 1750 Overloaded Moves . | . . . . . . . . . . . . . . . . . Propulsion Burnouts . | . . . . . . . . . . . . . . . . . Robots Hopped . | . . . . . . . . . . . . . . . . . Potential Cave-ins 30 | . . . . . . 11 . . . . . 19 . . . . Cave-ins Triggered 2 | . . . . . . 1 . . . . . 1 . . . . Exploration Rate (%) 40 | 5 27 21 100 77 81 24 21 46 16 5 6 78 76 2 78 17 Regions Visited 16 Branch Regions 7 Pre-discovered Areas 1 | . . . 1 . . . . . . . . . . . . . Known Exits Taken 4 | . . . . . . 1 . . 1 1 . . . 1 . . Unknown Exits Taken 11 | 1 1 1 1 1 1 . 1 1 . . 1 1 1 . . . Scrap Searched 3 | . . . 2 . 1 . . . . . . . . . . . Spaces Dug 78 | . . . . . . 19 18 . . 4 3 26 2 . 2 4 Terrain Destroyed 276 | . 7 . 15 . 4 46 95 1 1 4 15 59 2 . 7 20 Melee 78 | . . . . . . 19 18 . . 4 3 26 2 . 2 4 Projectile 47 | . . . 1 . 4 7 3 1 1 . 12 2 . . . 16 AOE 151 | . 7 . 14 . . 20 74 . . . . 31 . . 5 . Terrain Rammed . | . . . . . . . . . . . . . . . . . Walls Destroyed . | . . . . . . . . . . . . . . . . . Machines Disabled . | . . . . . . . . . . . . . . . . . Actions | -11 -10 -9 -9 -9 -8 -8 -7 -7 -7 -6 -5 -5 -5 -4 -4 -3 --------- Run | Yrd Mat Mat Min Exi Min Mat Fac Low Low Fac Fac Ext Cet Fac DSF Res Total 14683 | 90 188 1560 955 397 636 1042 2505 892 239 843 1497 1672 285 119 157 1606 Wait 6646 | 2 9 1184 114 . 223 593 1515 439 67 587 985 363 73 . . 492 Move 6791 | 61 160 292 796 392 394 352 843 449 148 234 428 1018 188 108 107 821 Hop . | . . . . . . . . . . . . . . . . . Pick Up 216 | 14 3 24 7 1 4 10 26 2 2 3 4 38 4 3 8 63 Fast Attach 26 | . . . 1 1 . . 2 . . . . 11 . . 2 9 Attach 177 | 7 1 10 4 . 1 13 9 . 3 2 21 26 5 2 6 67 Detach 39 | . 1 3 . . . 7 1 . 1 . 11 9 2 . . 4 Swap 117 | 1 4 4 8 1 5 11 11 . 1 1 3 34 5 5 4 19 Drop 105 | . 5 . 6 2 6 7 20 2 1 . 3 26 1 1 6 19 Fire 393 | 5 5 43 19 . 3 29 43 . 16 11 34 69 5 . 11 100 Melee 158 | . . . . . . 20 35 . . 5 8 68 2 . 13 7 Ram . | . . . . . . . . . . . . . . . . . Kick . | . . . . . . . . . . . . . . . . . Crush 5 | . . . . . . . . . . . . . . . . 5 Escape Stasis 10 | . . . . . . . . . . . . 10 . . . . Rewire . | . . . . . . . . . . . . . . . . . Trap . | . . . . . . . . . . . . . . . . . Miscellaneous . | . . . . . . . . . . . . . . . . . Route ------- -11/Scrapyard -10/Materials -9/Materials -9/Mines (discovered 3 exits: *Mat x2 / *Exi) -9/Exiles (discovered 2 exits: [*Min x2]) -8/Mines (discovered 2 exits: *Mat x2) -8/Materials (discovered 2 exits: *Fac x2) -7/Factory -7/Lower Caves -7/Lower Caves -6/Factory -5/Factory -5/Extension (discovered 2 exits: *Fac / *Cet) -5/Cetus (discovered 2 exits: *Fac / [*Arc]) -4/Factory -4/DSF -3/Research History --------- Turn | Location | Event 45 | -11/Scrapyard | Discovered new exit (range 15) 93 | -11/Scrapyard | Entered Materials 270 | -10/Materials | Discovered new exit (range 9) 285 | -10/Materials | Entered another Materials area 285 | -9/Materials | Evolved 2 slots: Utility x2 307 | -9/Materials | Build established: Mutant 1604 | -9/Materials | Discovered new exit (range 15) 1693 | -9/Materials | Lost 3 parts (1n2w) 2081 | -9/Materials | Entered Mines 2129 | -9/Mines | Lost 3 parts (1n2u) 2336 | -9/Mines | Deemed a non-threat by the Exiles lab entrance 2340 | -9/Mines | Discovered new exit (range 5) 2388 | -9/Mines | Build established: Scavenger-Mutant 2615 | -9/Mines | Found a damaged Exp. Sensor Array with a note attached 2818 | -9/Mines | Found a hidden stash of uninstalled traps 2870 | -9/Mines | Discovered new exit (range 7) 3336 | -9/Mines | YI-UF0 nonchalantly dropped a Grenade Launcher on the ground 3540 | -9/Mines | Learned Materials garrison access intel 3588 | -9/Mines | Learned location of Storage (-7) 3845 | -9/Mines | Met a Derelict shopkeep closing up shop 4393 | -9/Mines | Destroyed YI-UF0 4686 | -9/Mines | Build established: Mutant 4760 | -9/Mines | Discovered new exit (range 10) 4821 | -9/Mines | Entered Exiles 4873 | -9/Exiles | Discovered new exit (range 15) 4985 | -9/Exiles | Met 8R-AWN 5029 | -9/Exiles | Met EX-HEX 5138 | -9/Exiles | Met EX-BIN 5193 | -9/Exiles | Aligned with FarCom system 5196 | -9/Exiles | Given EX-Vault access code 5301 | -9/Exiles | Opened EX-Vault 5436 | -9/Exiles | Found Prototype Storage 5437 | -9/Exiles | Identified Superbattery 5449 | -9/Exiles | Found Prototype Processor 5449 | -9/Exiles | Identified Modified TNC 5521 | -9/Exiles | Warned to stay clear of 0b10 Research branches 5610 | -9/Exiles | Met EX-DEC 5723 | -9/Exiles | Visited The Gauntlet 5998 | -9/Exiles | Discovered new exit (range 14) 6081 | -9/Exiles | Left Exiles lab with Modified TNC 6081 | -9/Exiles | Entered Mines 6892 | -8/Mines | Build established: Skirmisher 7074 | -8/Mines | Discovered new exit (range 14) 7359 | -8/Mines | Discovered new exit (range 14) 7420 | -8/Mines | Entered Materials 7420 | -8/Materials | Evolved 2 slots: Utility x2 7421 | -8/Materials | Identified exit to Factory 7422 | -8/Materials | Loaded intel: 1 garrison access location 7557 | -8/Materials | Garrison activated, responded to threat 8201 | -8/Materials | Discovered exit to Factory (range 15) 8785 | -8/Materials | Crushed by falling debris 8879 | -8/Materials | Entered Factory 8879 | -7/Factory | Evolved 2 slots: Utility x1, Weapon x1 9173 | -7/Factory | Build established: Scavenger-Skirmisher 9749 | -7/Factory | Build established: Assassin 13022 | -7/Factory | Discovered new exit (range 12) 13038 | -7/Factory | Entered Lower Caves 14015 | -7/Lower Caves | Discovered new exit (range 14) 14132 | -7/Lower Caves | Entered another Lower Caves area 14360 | -7/Lower Caves | Discovered new exit (range 8) 14393 | -7/Lower Caves | Identified exit to Factory 14435 | -7/Lower Caves | Attracted the attention of an 0b10 checkpoint 14468 | -7/Lower Caves | Entered Factory 14468 | -6/Factory | Evolved 2 slots: Power x1, Utility x1 14778 | -6/Factory | Build established: Infiltrator-Assassin 15259 | -6/Factory | Discovered new exit (range 15) 15448 | -6/Factory | Identified exit to Factory 15449 | -6/Factory | Entered another Factory area 15449 | -5/Factory | Evolved 2 slots: Power x1, Utility x1 17022 | -5/Factory | System corruption reached 10% 17029 | -5/Factory | Core integrity fell below 50% 17410 | -5/Factory | Discovered new exit (range 14) 17462 | -5/Factory | Entered Extension 18428 | -5/Extension | Lost 3 allies 18678 | -5/Extension | Build established: Assassin 18731 | -5/Extension | Lost 3 allies 18830 | -5/Extension | Rescued a captive Derelict 19096 | -5/Extension | Build established: Scavenger-Assassin 19224 | -5/Extension | Spotted B-75 Beast 19317 | -5/Extension | Core integrity fell below 20% 19359 | -5/Extension | Lost 6 parts (2p2u2w) 19484 | -5/Extension | Crushed by falling debris 19818 | -5/Extension | Build established: Commander-Assassin 20126 | -5/Extension | Rescued a captive Derelict 20127 | -5/Extension | Rescued a captive Derelict 20462 | -5/Extension | Disrupted transfer network 20559 | -5/Extension | Build established: Scavenger-Assassin 20711 | -5/Extension | Central database locked down 20820 | -5/Extension | Disrupted transfer network 20844 | -5/Extension | Lost 3 parts (1p1n1u) 20869 | -5/Extension | Discovered new exit (range 10) 20872 | -5/Extension | Discovered new exit (range 6) 20963 | -5/Extension | Entered Cetus 21117 | -5/Cetus | Spotted Cetus Guard 21117 | -5/Cetus | Spotted Cetus Guard 21122 | -5/Cetus | Spotted Cetus Guard 21123 | -5/Cetus | Spotted Cetus Guard 21129 | -5/Cetus | Destroyed Cetus Guard 21130 | -5/Cetus | Destroyed Cetus Guard 21133 | -5/Cetus | Destroyed Cetus Guard 21134 | -5/Cetus | Destroyed Cetus Guard 21152 | -5/Cetus | Discovered new exit (range 38) 21177 | -5/Cetus | Discovered new exit (range 68) 21188 | -5/Cetus | Spotted Cetus Guard 21188 | -5/Cetus | Spotted Cetus Guard 21192 | -5/Cetus | Spotted Cetus Guard 21195 | -5/Cetus | Spotted Cetus Guard 21572 | -5/Cetus | Build established: Scavenger-Tank 21713 | -5/Cetus | Security sweep announced 21800 | -5/Cetus | Entered Factory 21800 | -4/Factory | Evolved 2 slots: Propulsion x1, Weapon x1 22083 | -4/Factory | Identified exit to DSF 22083 | -4/Factory | Entered DSF 22138 | -4/DSF | Additional patrols routed to DSF 22252 | -4/DSF | Sterilization system engaged 22271 | -4/DSF | Destroyed 7 combat bots 22272 | -4/DSF | Ambient heat levels rising (+10) 22287 | -4/DSF | Ambient heat levels rising (+10) 22302 | -4/DSF | Ambient heat levels rising (+10) 22317 | -4/DSF | Ambient heat levels rising (+10) 22326 | -4/DSF | Discovered new exit (range 13) 22332 | -4/DSF | Ambient heat levels rising (+10) 22343 | -4/DSF | Entered Research 22343 | -3/Research | Evolved 2 slots: Propulsion x1, Utility x1 23190 | -3/Research | System corruption reached 10% 23337 | -3/Research | Lost 24 parts (3p6n7u8w) 23361 | -3/Research | Core integrity fell below 50% 23796 | -3/Research | Lost 4 parts (1p1n1u1w) 23828 | -3/Research | Build established: Scavenger-Skirmisher 23886 | -3/Research | System corruption reached 30% 24362 | -3/Research | Lost 3 parts (1p2w) 24408 | -3/Research | Lost 3 parts (1n1u1w) 24664 | -3/Research | Core integrity fell below 20% 24735 | -3/Research | Destroyed by H-77 Assassin with High-powered Shotgun Last Messages --------------- 24721_ Complication: Energy sink damages Corrupted Coil Gun (-28). 24722_ Penetrated by Slug. 24722_ Slug penetrates Wall. 24724_ System corrupted: Coil Gun jammed. 24726_ System corrupted: Mic. Antimatter Reactor rejected. 24726_ U-05 Engineer builds a Wall. 24726_ Slug penetrates Wall. 24727_ H-77 Assassin misfires. 24727_ Slug penetrates Wall. 24728_ H-77 Assassin suffers critical hit (Destroy). 24728_ Destroyed Imp. Phase Shifter. 24730_ U-05 Engineer suffers critical hit (Destroy). 24730_ U-05 Engineer destroyed. 24732_ Slug penetrates Wall. 24735_ Slug penetrates Research Mainframe. [Achievement: 10k Club] Map ----- +----------------------------------------------------+ | ?????????????????????????????????????????????????? | | ?????????????????????????????????????????????????? | | ?????????????????????????????????????????????????? | | ?????????????????????????????????????????????????? | | ?????????????????????????????????????????????????? | | ?????????????????????????????????????????????????? | | ?????????????????????????????????????????????????? | | ?????????????????????????????????????????????????? | | ?????????????????????????????????????????????????? | | ?????????????????????????????????????????????????? | | ?????????????????????????????????????????????????? | | ?????????????????????????????????????????????????? | | ?????????????????????????????????????????????????? | | ?????????????????????????????????????????????????? | | ?????????????????????????????????????????????????? | | ?????????????????????????????????????????????????? | | ?????????????????????????????????????????????????? | | ?????????????????????????????????????????????????? | | ?????????????????????????????????????????????????? | | ?????????????????????????????????????????????????? | | ?????????????????????????????????????????????????? | | ???????????????????????????##????????????????????? | | ?????????????????????###########?????????????????? | | ?????????????????????# h%! #?????????????????? | | ?????????????????????# = ==! #?????????????????? | | ?????????????????????# @ "" #?????????????????? | | ?????????????????????# """" #?????????????????? | | ?????????????????????# %*"""" #?????????????????? | | ?????????#???????????# """" #?????????????????? | | ?????????# ??????????# u #?????????????????? | | ?????????# ??????????# #?????????????????? | | ########## ################+####?????????????????? | | #?????????????????? | | | ! # """????????????? | | + """????????????? | | #?????????????????? | | ????## ###+######+###### #?????????????????? | | ?????# # #? ] ?# #?????????????????? | | ?????# # = ## ?+ +?????????????????? | | ?????# # #? ! ?#### #?????????????????? | | ?????+ #= "#? " ????? #?????????????????? | | ?????# #= T## """%" ???? ?????????????????? | | ?????# # "## """" ???? ????????????????? | | ?????# # ## """ ????? ???????????????? | | ?????# # ## ????? ""??????????????? | | ?????# ###+#### #???? """?????????????? | | ?????# #####+####???? ""??????????????? | | ?????# #?????????????? ???????????????? | | ?????# #?????????????? ???????????????? | | ?????# #?????????????? ??????????????? | +----------------------------------------------------+ Best States ------------- Heat Dissipation 103 Energy Generation 63 Energy Capacity 730 Matter Stores 300 Matter Capacity 450 Sight Range 20 Robot Scan Range 15 Terrain Scan Range 16 Terrain Scan Density 210 ECM Strength 2 Jamming Range 14 Armor Coverage 1200 Resistance: KI 30 Evasion (%) 50 Recoil Reduction 7 Energy Filtering 30 Offensive Hacking 28 Item Schematics ----------------- None Robot Schematics ------------------ None Fabricated ------------ Nothing Repaired ---------- Nothing Alien Tech Used ----------------- None Achievements -------------- 10k Club A New Friend Dangerous Findings Leap Before You Look Let's See Who's Tougher Novice Programmer Respectable Loadout Tank Z1$+NX3F=JRE3_ZNQR Challenges ------------ None Game ------ Seed WeaponDirtyDoomcannon Manual? 0 Play Time 05:21:53 Cumulative 22.9 hours Start 2025.08.24 @ 17:50:00 End 2025.08.25 @ 02:04:20 Sessions 1 Manual Loads 0 Difficulty Rogue Special Mode None Game No. 11 Rogue 11 Adventurer 0 Explorer 0 Win Type - Total 0 Types 0/0/0/0/0/0/0/0/0/0 Lore% 11 Gallery% 18 Achievement% 17 Wizard Run 0 Options --------- Layout 1 ASCII 0 Keyboard 0 Movement Mouse Keybinds 0 Fullscreen 2 Font 24/Proggy Map View 50x35 Zoom Use 0% Tactical HUD 1 Map Filters NONE Filters NONE Steam 1 RUN: 79e5c68b-be9d-407d-9ed7-c4590c569805